fUST/lending_fUST_20250518
["ID","MTS","AMOUNT","RATE_DAILY","PERIOD"]
[361479346,1747581046894,-969.45,0.00016164,2]
[361479348,1747581046903,-450.0,0.00016164,2]
[361479350,1747581046913,-450.0,0.00016164,2]
[361479352,1747581046922,-2835.5,0.00016164,2]
[361479354,1747581046932,-5358.41,0.00016164,2]
[361479356,1747581046941,-1124.46,0.00016164,2]
[361479358,1747581046951,-467.32,0.00016164,2]
[361479360,1747581046960,-1699.94,0.00016164,2]
[361479362,1747581046970,-2102.31,0.00016164,2]
[361479364,1747581046980,-450.0,0.00016164,2]
[361479366,1747581046991,-704.0,0.00016164,2]
[361479381,1747581047127,-846.34,0.00016164,2]
[361479383,1747581047140,-1146.45,0.00016164,2]
[361479385,1747581047150,-1483.49,0.00016164,2]
[361479387,1747581047160,-775.23,0.00016164,2]
[361479389,1747581047170,-151.0,0.00016164,2]
[361479391,1747581047180,-278.660992,0.00016164,2]
[361479393,1747581047191,-3000.0,0.0001617,2]
[361479395,1747581047201,-151.0,0.0001617,2]
[361479397,1747581047210,-179.065925,0.0001617,2]
[361479399,1747581047220,-179.065925,0.0001617,2]
[361479401,1747581047229,-151.0,0.0001617,2]
[361479403,1747581047239,-3000.0,0.0001618,2]
[361479405,1747581047248,-3000.0,0.0001619,2]
[361479407,1747581047257,-151.0,0.0001619,2]
[361479409,1747581047267,-151.0,0.0001619,2]
[361479411,1747581047277,-151.0,0.0001619,2]
[361479413,1747581047287,-215.277832,0.0001619,2]
[361479415,1747581047297,-3000.0,0.000162,2]
[361479417,1747581047306,-3000.0,0.0001621,2]
[361479419,1747581047316,-3000.0,0.0001622,2]
[361479421,1747581047326,-3000.0,0.0001623,2]
[361479423,1747581047336,-3000.0,0.0001624,2]
[361479425,1747581047346,-3000.0,0.0001625,2]
[361479427,1747581047356,-2033.7137117,0.00016255,2]
[361479429,1747581047366,-3000.0,0.0001626,2]
[361479431,1747581047376,-151.0,0.0001626,2]
[361479433,1747581047385,-3000.0,0.0001627,2]
[361479435,1747581047394,-158.55,0.0001627,2]
[361479437,1747581047405,-158.55,0.0001627,2]
[361479439,1747581047416,-3000.0,0.0001628,2]
[361479442,1747581047426,-3000.0,0.0001629,2]
[361479444,1747581047435,-3000.0,0.000163,2]
[361479446,1747581047446,-151.0,0.000163,2]
[361479448,1747581047455,-815.327103,0.00016301,2]
[361479450,1747581047467,-815.327103,0.00016301,2]
[361479452,1747581047476,-477.17,0.00016301,2]
[361479454,1747581047486,-867.57,0.00016301,2]
[361479456,1747581047496,-969.45,0.00016301,2]
[361479458,1747581047505,-450.0,0.00016301,2]
[361479460,1747581047515,-450.0,0.00016301,2]
[361479462,1747581047524,-2835.5,0.00016301,2]
[361479464,1747581047535,-5358.41,0.00016301,2]
[361479466,1747581047544,-1124.46,0.00016301,2]
[361479468,1747581047554,-467.32,0.00016301,2]
[361479470,1747581047563,-1699.94,0.00016301,2]
[361479472,1747581047573,-2102.31,0.00016301,2]
[361479474,1747581047583,-450.0,0.00016301,2]
[361479476,1747581047592,-704.0,0.00016301,2]
[361479478,1747581047602,-846.34,0.00016301,2]
[361479480,1747581047613,-1146.45,0.00016301,2]
[361479482,1747581047623,-1483.49,0.00016301,2]
[361479484,1747581047632,-775.23,0.00016301,2]
[361479486,1747581047642,-3000.0,0.0001631,2]
[361479488,1747581047651,-2000.0,0.00016314,2]
[361479490,1747581047660,-3000.0,0.0001632,2]
[361479492,1747581047669,-2000.0,0.00016323,2]
[361479494,1747581047679,-5000.0,0.00016327,2]
[361479496,1747581047688,-3000.0,0.0001633,2]
[361479498,1747581047697,-546.0,0.00016331,2]
[361479500,1747581047707,-707.0,0.00016331,2]
[361479502,1747581047717,-2247.0,0.00016331,2]
[361479504,1747581047726,-404.0,0.00016331,2]
[361479506,1747581047735,-2000.0,0.00016332,2]
[361479508,1747581047745,-221.049116,0.00016332,2]
[361479510,1747581047755,-3000.0,0.0001634,2]
[361479512,1747581047764,-151.0,0.0001634,2]
[361479514,1747581047773,-151.0,0.0001634,2]
[361479516,1747581047783,-3000.0,0.0001635,2]
[361479518,1747581047792,-151.0,0.0001635,2]
[361479520,1747581047802,-151.0,0.0001635,2]
[361479522,1747581047812,-3000.0,0.0001636,2]
[361479524,1747581047821,-3000.0,0.0001637,2]
[361479526,1747581047830,-154.971527,0.0001637,2]
[361479528,1747581047840,-154.971527,0.0001637,2]
[361479530,1747581047849,-677.457359,0.0001637,2]
[361479532,1747581047859,-677.457359,0.0001637,2]
[361479534,1747581047868,-151.0,0.0001637,2]
[361479536,1747581047878,-159.83857,0.0001637,2]
[361479538,1747581047887,-1356.411808,0.0001637,2]
[361479540,1747581047897,-1356.411808,0.0001637,2]
[361479543,1747581047907,-3000.0,0.0001638,2]
[361479545,1747581047916,-3000.0,0.0001639,2]
[361479547,1747581047925,-3000.0,0.000164,2]
[361479549,1747581047935,-639.0,0.000164,2]
[361479551,1747581047944,-2000.0,0.00016408,2]
[361479553,1747581047954,-500.0,0.00016408,2]
[361479555,1747581047963,-1503.52324344,0.00016408,2]
[361479557,1747581047974,-3000.0,0.0001641,2]
[361479558,1747581047983,-3000.0,0.0001642,2]
[361479560,1747581047992,-3000.0,0.0001643,2]
[361479562,1747581048001,-151.0,0.00016438,2]
[361479563,1747581048011,-151.0,0.00016438,2]
[361479565,1747581048020,-151.0,0.00016438,2]
[361479567,1747581048029,-179.065925,0.00016438,2]
[361479569,1747581048039,-179.065925,0.00016438,2]
[361479571,1747581048048,-151.0,0.00016438,2]
[361479573,1747581048057,-500.0,0.00016438,2]
[361479574,1747581048066,-500.0,0.00016438,2]
[361479576,1747581048076,-618.03591607,0.00016438,2]
[361479578,1747581048085,-151.0,0.00016438,2]
[361479580,1747581048095,-721.96,0.00016438,2]
[361479581,1747581048104,-721.96,0.00016438,2]
[361479583,1747581048117,-721.96,0.00016438,2]
[361479585,1747581048126,-721.96,0.00016438,2]
[361479587,1747581048135,-721.96,0.00016438,2]
[361479588,1747581048145,-721.96,0.00016438,2]
[361479590,1747581048154,-721.96,0.00016438,2]
[361479592,1747581048164,-721.96,0.00016438,2]
[361479594,1747581048173,-721.96,0.00016438,2]
[361479596,1747581048183,-721.96,0.00016438,2]
[361479597,1747581048191,-721.96,0.00016438,2]
[361479599,1747581048201,-721.96,0.00016438,2]
[361479601,1747581048211,-721.96,0.00016438,2]
[361479603,1747581048220,-721.96,0.00016438,2]
[361479605,1747581048230,-721.96,0.00016438,2]
[361479606,1747581048239,-721.96,0.00016438,2]
[361479608,1747581048249,-721.96,0.00016438,2]
[361479610,1747581048258,-721.96,0.00016438,2]
[361479612,1747581048268,-721.96,0.00016438,2]
[361479613,1747581048277,-721.96,0.00016438,2]
[361479615,1747581048286,-721.96,0.00016438,2]
[361479617,1747581048296,-151.0,0.00016438,2]
[361479619,1747581048306,-151.0,0.00016438,2]
[361479620,1747581048315,-151.0,0.00016438,2]
[361479622,1747581048324,-477.17,0.00016438,2]
[361479624,1747581048334,-867.57,0.00016438,2]
[361479626,1747581048343,-969.45,0.00016438,2]
[361479627,1747581048353,-450.0,0.00016438,2]
[361479629,1747581048366,-450.0,0.00016438,2]
[361479631,1747581048375,-2835.5,0.00016438,2]
[361479633,1747581048385,-5358.41,0.00016438,2]
[361479635,1747581048395,-1124.46,0.00016438,2]
[361479636,1747581048404,-467.32,0.00016438,2]
[361479638,1747581048414,-1699.94,0.00016438,2]
[361479640,1747581048424,-2102.31,0.00016438,2]
[361479642,1747581048433,-568.78527675,0.00016438,2]
[361479644,1747581048443,-704.0,0.00016438,2]
[361479645,1747581048453,-846.34,0.00016438,2]
[361479647,1747581048462,-1146.45,0.00016438,2]
[361479649,1747581048472,-1483.49,0.00016438,2]
[361479651,1747581048481,-775.23,0.00016438,2]
[361479653,1747581048492,-500.0,0.00016438,2]
[361479655,1747581048503,-562.4615486,0.00016438,2]
[361479656,1747581048512,-500.0,0.00016438,10]
[361479658,1747581048521,-500.0,0.00016438,10]
[361479660,1747581048531,-500.0,0.00016438,10]
[361479662,1747581048540,-1560.607322,0.00016438,2]
[361479664,1747581048549,-1560.607322,0.00016438,2]
[361479666,1747581048559,-1560.607322,0.00016438,2]
[361479667,1747581048568,-1560.607322,0.00016438,2]
[361479669,1747581048578,-1560.607322,0.00016438,2]
[361479671,1747581048587,-1560.607322,0.00016438,2]
[361479673,1747581048596,-1560.607322,0.00016438,2]
[361479675,1747581048607,-1560.607322,0.00016438,2]
[361479676,1747581048617,-351.373665,0.00016438,2]
[361479678,1747581048626,-351.373665,0.00016438,2]
[361479680,1747581048636,-351.373665,0.00016438,2]
[361479682,1747581048645,-351.373665,0.00016438,2]
[361479684,1747581048655,-351.373665,0.00016438,2]
[361479686,1747581048664,-351.373665,0.00016438,2]
[361479688,1747581048674,-351.373665,0.00016438,2]
[361479690,1747581048684,-351.373665,0.00016438,2]
[361479692,1747581048693,-500.0,0.00016438,2]
[361479693,1747581048703,-250.16595451,0.00016438,2]
[361479695,1747581048713,-3000.0,0.0001644,2]
[361479697,1747581048723,-3000.0,0.0001645,2]
[361479698,1747581048733,-3000.0,0.0001646,2]
[361479700,1747581048742,-3000.0,0.0001647,2]
[361479702,1747581048751,-3000.0,0.0001648,2]
[361479704,1747581048761,-815.327103,0.0001648,2]
[361479706,1747581048770,-815.327103,0.0001648,2]
[361479708,1747581048779,-158.55,0.00016486,2]
[361479709,1747581048788,-158.55,0.00016486,2]
[361479711,1747581048798,-151.0,0.00016486,2]
[361479713,1747581048807,-6633.02380595,0.00016486,2]
[361479715,1747581048816,-3000.0,0.0001649,2]
[361479717,1747581048825,-2000.0,0.0001649,2]
[361479719,1747581048834,-151.0,0.000165,2]
[361479721,1747581048844,-3000.0,0.000165,2]
[361479722,1747581048854,-3000.0,0.0001651,2]
[361479724,1747581048864,-3000.0,0.0001652,2]
[361479726,1747581048874,-3000.0,0.0001653,2]
[361479728,1747581048883,-3000.0,0.0001654,2]
[361479730,1747581048893,-3000.0,0.0001655,2]
[361479732,1747581048903,-3000.0,0.0001656,2]
[361479734,1747581048912,-3000.0,0.0001657,2]
[361479738,1747581048922,-151.0,0.00016575,2]
[361479740,1747581048964,-151.0,0.00016575,2]
[361479742,1747581048973,-1560.607322,0.00016575,2]
[361479744,1747581048982,-1560.607322,0.00016575,2]
[361479746,1747581048991,-351.373665,0.00016575,2]
[361479748,1747581049000,-351.373665,0.00016575,2]
[361479749,1747581049009,-154.971527,0.00016575,2]
[361479751,1747581049019,-154.971527,0.00016575,2]
[361479753,1747581049027,-677.457359,0.00016575,2]
[361479755,1747581049037,-677.457359,0.00016575,2]
[361479757,1747581049046,-151.0,0.00016575,2]
[361479758,1747581049055,-721.96,0.00016575,2]
[361479760,1747581049065,-1356.411808,0.00016575,2]
[361479762,1747581049074,-1356.411808,0.00016575,2]
[361479764,1747581049084,-477.17,0.00016575,2]
[361479765,1747581049093,-687.93143923,0.00016575,2]
[361479781,1747581049272,-179.63856077,0.00016575,2]
[361479783,1747581049282,-969.45,0.00016575,2]
[361479784,1747581049292,-526.1,0.00016575,2]
[361479786,1747581049302,-382.93066571,0.00016575,2]
[361479788,1747581049312,-2835.5,0.00016575,2]
[361479790,1747581049322,-5358.41,0.00016575,2]
[361479792,1747581049332,-1124.46,0.00016575,2]
[361479794,1747581049341,-467.32,0.00016575,2]
[361479795,1747581049350,-1699.94,0.00016575,2]
[361479797,1747581049365,-2102.31,0.00016575,2]
[361479799,1747581049375,-704.0,0.00016575,2]
[361479801,1747581049384,-846.34,0.00016575,2]
[361479803,1747581049394,-1146.45,0.00016575,2]
[361479805,1747581049403,-1483.49,0.00016575,2]
[361479806,1747581049413,-775.23,0.00016575,2]
[361479808,1747581049423,-3000.0,0.0001658,2]
[361479810,1747581049432,-182.222482,0.0001658,2]
[361479812,1747581049441,-151.0,0.0001658,2]
[361479814,1747581049451,-151.0,0.0001658,2]
[361479816,1747581049461,-4212.159899,0.0001659,2]
[361479817,1747581049470,-21450.63364322,0.00016712,3]
[361479819,1747581049480,-34431.12832314,0.00016712,2]
[361479821,1747581049489,-180.696086,0.00016712,2]
[361479823,1747581049498,-721.96,0.00016712,2]
[361479825,1747581049508,-477.17,0.00016712,2]
[361479827,1747581049517,-867.57,0.00016712,2]
[361479828,1747581049526,-969.45,0.00016712,2]
[361479830,1747581049535,-2835.5,0.00016712,2]
[361479832,1747581049545,-5358.41,0.00016712,2]
[361479834,1747581049554,-1124.46,0.00016712,2]
[361479836,1747581049563,-467.32,0.00016712,2]
[361479838,1747581049572,-1699.94,0.00016712,2]
[361479840,1747581049582,-2102.31,0.00016712,2]
[361479841,1747581049591,-704.0,0.00016712,2]
[361479843,1747581049600,-846.34,0.00016712,2]
[361479845,1747581049612,-1146.45,0.00016712,2]
[361479847,1747581049622,-1483.49,0.00016712,2]
[361479849,1747581049632,-775.23,0.00016712,2]
[361479851,1747581049641,-1000.0,0.00016712,2]
[361479853,1747581049650,-151.0,0.00016849,2]
[361479854,1747581049659,-179.065925,0.00016849,2]
[361479856,1747581049669,-179.065925,0.00016849,2]
[361479858,1747581049679,-151.0,0.00016849,2]
[361479860,1747581049689,-721.96309113,0.00016849,2]
[361479862,1747581049699,-477.22,0.00016849,2]
[361479864,1747581049709,-867.57647746,0.00016849,2]
[361479866,1747581049718,-969.62025481,0.00016849,2]
[361479868,1747581049728,-2835.5592,0.00016849,2]
[361479870,1747581049738,-5358.52594911,0.00016849,2]
[361479871,1747581049747,-1124.47,0.00016849,2]
[361479873,1747581049757,-467.52,0.00016849,2]
[361479875,1747581049767,-1700.10438535,0.00016849,2]
[361479877,1747581049776,-2102.34995397,0.00016849,2]
[361479879,1747581049786,-704.02,0.00016849,2]
[361479881,1747581049795,-846.40624958,0.00016849,2]
[361479883,1747581049804,-1146.64809,0.00016849,2]
[361479885,1747581049814,-1483.62697192,0.00016849,2]
[361479886,1747581049824,-775.2948286,0.00016849,2]
[361479888,1747581049833,-2500.0,0.00016862,2]
[361479890,1747581049843,-2500.0,0.00016871,2]
[361479892,1747581049852,-2500.0,0.0001688,2]
[361479894,1747581049863,-14064.17879144,0.000169,2]
[361479896,1747581049873,-151.0,0.000169,2]
[361479898,1747581049883,-815.327103,0.000169,2]
[361479900,1747581049892,-815.327103,0.000169,2]
[361479901,1747581049902,-151.0,0.000169,2]
[361479903,1747581049911,-5000.0,0.00016915,2]
[361479905,1747581049921,-6633.02380595,0.00016934,2]
[361479907,1747581049930,-151.0,0.00016935,2]
[361479909,1747581049940,-151.0,0.00016935,2]
[361479911,1747581049950,-151.0,0.00016935,2]
[361479913,1747581049959,-151.0,0.00016935,2]
[361479915,1747581049969,-158.55,0.00016935,2]
[361479917,1747581049978,-158.55,0.00016935,2]
[361479919,1747581049988,-1180.55544505,0.00016956,2]
[361479920,1747581049998,-627.37788508,0.00016986,2]
[361479922,1747581050007,-2590.15778748,0.00017,2]
[361479924,1747581050017,-2500.0,0.00017038,2]
[361479926,1747581050026,-151.0,0.000171,2]
[361479928,1747581050037,-160.0,0.000171,3]
[361479930,1747581050046,-12636.50182523,0.000171,3]
[361479932,1747581050056,-314.4327999,0.000171,3]
[361479934,1747581050066,-664.0,0.00017162,2]
[361479936,1747581050075,-5588.69337767,0.00017322,2]
[361479937,1747581050084,-5000.0,0.00017322,2]
[361479939,1747581050094,-5000.0,0.00017322,2]
[361479941,1747581050103,-5000.0,0.00017322,2]
[361479943,1747581050118,-5000.0,0.00017322,2]
[361479945,1747581050129,-677.457359,0.00017322,2]
[361479947,1747581050138,-677.457359,0.00017322,2]
[361479949,1747581050148,-1356.411808,0.00017322,2]
[361479951,1747581050158,-1356.411808,0.00017322,2]
[361479953,1747581050168,-6633.02380595,0.00017383,2]
[361479955,1747581050177,-151.0,0.00017383,2]
[361479956,1747581050187,-285.3604,0.00017383,2]
[361479958,1747581050197,-154.971527,0.00017394,2]
[361479960,1747581050207,-154.971527,0.00017394,2]
[361479962,1747581050216,-3000.0,0.0001741,2]
[361479964,1747581050226,-3000.0,0.00017419,2]
[361479966,1747581050235,-3000.0,0.00017428,2]
[361479968,1747581050245,-5000.0,0.00017503,2]
[361479970,1747581050254,-3138.24278703,0.00017586,2]
[361479972,1747581050264,-151.0,0.000176,2]
[361479974,1747581050273,-613.22,0.00017831,2]
[361479975,1747581050283,-6633.02380595,0.00017831,2]
[361479977,1747581050292,-809.81047999,0.00017958,2]
[361479979,1747581050303,-3500.0,0.00017967,2]
[361479981,1747581050313,-2000.0,0.00017976,2]
[361479983,1747581050322,-5000.0,0.00018091,2]
[361479985,1747581050332,-9790.11371745,0.00018179,2]
[361479987,1747581050341,-151.0,0.000182,2]
[361479989,1747581050350,-6633.02380595,0.00018279,2]
[361479991,1747581050361,-212.32903618,0.000183,3]
[361479992,1747581050370,-492.30394114,0.00018489,5]
[361479994,1747581050379,-1000.0,0.00018515,2]
[361479996,1747581050389,-151.0,0.00018679,2]
[361479998,1747581050399,-1560.607322,0.00018679,2]
[361480000,1747581050409,-1560.607322,0.00018679,2]
[361480002,1747581050418,-351.373665,0.00018679,2]
[361480004,1747581050428,-351.373665,0.00018679,2]
[361480006,1747581050437,-5000.0,0.00018679,2]
[361480008,1747581050447,-6633.02380595,0.00018728,2]
[361480010,1747581050457,-151.0,0.000188,2]
[361480011,1747581050466,-6901.36556956,0.000189,2]
[361480013,1747581050476,-9790.11371736,0.00018974,2]
[361480015,1747581050486,-2500.0,0.00019,3]
[361480017,1747581050496,-6633.02380595,0.00019176,2]
[361480019,1747581050505,-151.0,0.00019176,2]
[361480021,1747581050515,-815.327103,0.00019176,2]
[361480023,1747581050524,-815.327103,0.00019176,2]
[361480025,1747581050535,-155.0,0.00019178,2]
[361480027,1747581050544,-500.0,0.00019178,2]
[361480029,1747581050553,-500.0,0.00019178,2]
[361480030,1747581050563,-500.0,0.00019178,2]
[361480032,1747581050572,-719.101789,0.00019178,2]
[361480034,1747581050582,-998.55070715,0.000192,3]
[361480036,1747581050592,-5000.0,0.00019268,2]
[361480038,1747581050602,-151.0,0.00019329,2]
[361480040,1747581050613,-82575.17967396,0.00019329,2]
[361480042,1747581050622,-707.0,0.00019331,2]
[361480044,1747581050632,-2235.0,0.00019331,2]
[361480046,1747581050641,-404.0,0.00019331,2]
[361480048,1747581050651,-151.0,0.000194,2]
[361480050,1747581050662,-2200.0,0.00019429,2]
[361480052,1747581050673,-503.97552872,0.000195,2]
[361480053,1747581050684,-159.405951,0.00019512,2]
[361480055,1747581050695,-158.52269,0.00019512,2]
[361480057,1747581050705,-180.05041412,0.00019547,2]
[361480059,1747581050714,-6633.02380595,0.00019624,2]
[361480061,1747581050724,-568.95141787,0.00019668,2]
[361480063,1747581050734,-2800.0,0.00019731,2]
[361480065,1747581050744,-151.0,0.00019731,2]
[361480067,1747581050753,-179.065925,0.00019731,2]
[361480069,1747581050763,-179.065925,0.00019731,2]
[361480071,1747581050774,-251.069745,0.00019731,2]
[361480073,1747581050783,-9790.11371736,0.00019769,2]
[361480075,1747581050793,-600.0,0.00019786,2]
[361480077,1747581050803,-568.95141787,0.00019789,2]
[361480078,1747581050813,-5000.0,0.00019856,2]
[361480080,1747581050823,-154696.4304355,0.0001989,2]
[361480082,1747581050833,-151.0,0.0001989,2]
[361480084,1747581050844,-151.0,0.0001989,2]
[361480086,1747581050853,-151.0,0.0001989,2]
[361480088,1747581050864,-9345.53291603,0.0001989,2]
[361480090,1747581050873,-151.0,0.0001989,2]
[361480092,1747581050883,-151.0,0.0001989,2]
[361480094,1747581050892,-158.55,0.0001989,2]
[361480096,1747581050902,-158.55,0.0001989,2]
[361480098,1747581050912,-151.0,0.0001989,2]
[361480100,1747581050921,-1560.607322,0.0001989,2]
[361480101,1747581050931,-1560.607322,0.0001989,2]
[361480103,1747581050940,-351.373665,0.0001989,2]
[361480105,1747581050950,-351.373665,0.0001989,2]
[361480107,1747581050959,-179.065925,0.0001989,2]
[361480109,1747581050969,-179.065925,0.0001989,2]
[361480111,1747581050978,-154.971527,0.0001989,2]
[361480113,1747581050987,-154.971527,0.0001989,2]
[361480115,1747581050996,-677.457359,0.0001989,2]
[361480117,1747581051006,-677.457359,0.0001989,2]
[361480119,1747581051016,-677.457359,0.0001989,2]
[361480120,1747581051025,-677.457354,0.0001989,2]
[361480122,1747581051035,-151.0,0.0001989,2]
[361480124,1747581051046,-815.327103,0.0001989,2]
[361480126,1747581051055,-815.32709375,0.0001989,2]
[361480128,1747581051064,-1356.411808,0.0001989,2]
[361480130,1747581051075,-1356.411808,0.0001989,2]
[361480132,1747581051084,-1356.411808,0.0001989,2]
[361480134,1747581051094,-1356.411814,0.0001989,2]
[361480136,1747581051104,-2568.3449398,0.000199,2]
[361480137,1747581051117,-2970.33,0.000199,2]
[361480139,1747581051126,-152.1878713,0.00019973,2]
[361480141,1747581051136,-1139.19650197,0.00019992,2]
[361480143,1747581051146,-1598.01280654,0.0002,2]
[361480145,1747581051156,-359.01882179,0.0002,2]
[361480147,1747581051165,-1183.24233303,0.0002,2]
[361480149,1747581051175,-67209.54263276,0.0002,2]
[361480151,1747581051185,-1537.67999198,0.0002,2]
[361480153,1747581051194,-4049.079,0.0002,30]
[361480155,1747581051203,-50000.0,0.0002,2]
[361480156,1747581051213,-50000.0,0.0002,2]
[361480158,1747581051223,-50000.0,0.0002,2]
[361480160,1747581051232,-50000.0,0.0002,2]
[361480162,1747581051243,-50000.0,0.0002,2]
[361480164,1747581051253,-50000.0,0.0002,2]
[361480166,1747581051263,-50000.0,0.0002,2]
[361480168,1747581051272,-50000.0,0.0002,2]
[361480170,1747581051281,-20771.25213532,0.0002,2]
[361480172,1747581051451,-428.83922466,0.00011808,2]
[361480173,1747581051460,-159.52550825,0.00011808,2]
[361480217,1747581052501,-153.03333796,0.00011413,2]
[361480219,1747581052511,-265.66819423,0.00011808,2]
[361480221,1747581052522,-74.80629752,0.00011808,2]
[361480223,1747581052531,-648.07765448,0.00011808,2]
[361480226,1747581052543,-194.24561502,0.00011808,2]
[361480228,1747581052552,-500.0,0.00011808,2]
[361480230,1747581052561,-500.0,0.00011808,2]
[361480232,1747581052570,-500.0,0.00011808,2]
[361480234,1747581052579,-691.15438498,0.00011808,2]
[361480236,1747581052591,-151.16888452,0.00011808,2]
[361480238,1747581052600,-500.0,0.00011808,2]
[361480240,1747581052611,-500.0,0.00011808,2]
[361480242,1747581052619,-842.3232695,0.00011808,2]
[361480244,1747581052629,-500.0,0.00011808,2]
[361480245,1747581052637,-500.0,0.00011808,2]
[361480247,1747581052647,-500.0,0.00011808,2]
[361480249,1747581052657,-842.3232695,0.00011808,2]
[361480251,1747581052666,-500.0,0.00011808,2]
[361480253,1747581052676,-500.0,0.00011808,2]
[361480255,1747581052685,-500.0,0.00011808,2]
[361480257,1747581052694,-842.3232695,0.00011808,2]
[361480259,1747581052704,-514.0294438,0.00011808,2]
[361480261,1747581052713,-500.0,0.00011808,2]
[361480263,1747581052723,-500.0,0.00011808,2]
[361480265,1747581052732,-842.3232695,0.00011808,2]
[361480267,1747581052741,-500.0,0.00011808,2]
[361480269,1747581052750,-842.3232695,0.00011808,2]
[361480271,1747581052759,-500.0,0.00011808,2]
[361480273,1747581052768,-500.0,0.00011808,2]
[361480275,1747581052778,-842.3232695,0.00011808,2]
[361480277,1747581052787,-500.0,0.00011808,2]
[361480279,1747581052796,-500.0,0.00011808,2]
[361480281,1747581052806,-842.3232695,0.00011808,2]
[361480283,1747581052815,-500.0,0.00011808,2]
[361480285,1747581052826,-842.3232695,0.00011808,2]
[361480287,1747581052835,-500.0,0.00011808,2]
[361480289,1747581052845,-842.3232695,0.00011808,2]
[361480291,1747581052854,-500.0,0.00011808,2]
[361480294,1747581052865,-842.3232695,0.00011808,2]
[361480296,1747581052875,-842.3232695,0.00011808,2]
[361480298,1747581052884,-571.80240881,0.00011808,2]
[361480300,1747581052894,-842.3232695,0.00011808,2]
[361480302,1747581052904,-842.3232695,0.00011808,2]
[361480304,1747581052915,-842.3232695,0.00011808,2]
[361480306,1747581052924,-842.3232695,0.00011808,2]
[361480308,1747581052933,-500.0,0.00011808,2]
[361480310,1747581052943,-842.3232695,0.00011808,2]
[361480312,1747581052953,-105.76474226,0.00011808,2]
[361480314,1747581052965,-736.55852724,0.00011808,2]
[361480316,1747581052975,-842.3232695,0.00011808,2]
[361480318,1747581052985,-842.3232695,0.00011808,2]
[361480320,1747581052994,-140.6032349,0.00011808,2]
[361480322,1747581053006,-416.351307,0.00011808,2]
[361480324,1747581053017,-285.3687276,0.00011808,2]
[361480326,1747581053027,-842.3232695,0.00011808,2]
[361480328,1747581053036,-842.3232695,0.00011808,2]
[361480330,1747581053046,-842.3232695,0.00011808,2]
[361480332,1747581053055,-842.3232695,0.00011808,2]
[361480334,1747581053064,-409.03592296,0.00011808,2]
[361480348,1747581053234,-433.28734654,0.00011808,2]
[361480351,1747581053244,-842.3232695,0.00011808,2]
[361480353,1747581053254,-842.3232695,0.00011808,2]
[361480354,1747581053263,-842.3232695,0.00011808,2]
[361480357,1747581053272,-842.3232695,0.00011808,2]
[361480358,1747581053281,-842.3232695,0.00011808,2]
[361480360,1747581053291,-842.3232695,0.00011808,2]
[361480362,1747581053300,-842.3232695,0.00011808,2]
[361480364,1747581053309,-842.3232695,0.00011808,2]
[361480366,1747581053318,-842.3232695,0.00011808,2]
[361480368,1747581053328,-842.3232695,0.00011808,2]
[361480370,1747581053337,-842.3232695,0.00011808,2]
[361480372,1747581053346,-842.3232695,0.00011808,2]
[361480374,1747581053358,-842.3232695,0.00011808,2]
[361480376,1747581053367,-842.3232695,0.00011808,2]
[361480378,1747581053376,-842.3232695,0.00011808,2]
[361480380,1747581053385,-842.3232695,0.00011808,2]
[361480382,1747581053394,-842.3232695,0.00011808,2]
[361480384,1747581053404,-842.3232695,0.00011808,2]